[Event "*** Titled Tuesday Blitz"]
[Site "Chess.com"]
[Date "2020.05.19"]
[Round "2"]
[White "BabyBoss31"]
[Black "Paul66666"]
[Result "1-0"]
[WhiteElo "2333"]
[BlackElo "2609"]
[TimeControl "180+1"]
[EndTime "12:19:16 PDT"]
[Termination "BabyBoss31 won by resignation"]

1. d4 {[%clk 0:03:00.9]} 1... Nf6 {[%clk 0:02:58.2]} 2. c4 {[%clk 0:03:01]} 2...
g6 {[%clk 0:02:59.1]} 3. Nc3 {[%clk 0:03:00.5]} 3... Bg7 {[%clk 0:02:59.3]} 4.
e4 {[%clk 0:03:00.7]} 4... O-O {[%clk 0:02:59.8]} 5. Nf3 {[%clk 0:03:01.2]} 5...
d6 {[%clk 0:02:59.8]} 6. h3 {[%clk 0:03:01]} 6... e5 {[%clk 0:02:58.3]} 7. d5
{[%clk 0:02:54.8]} 7... Na6 {[%clk 0:02:56.3]} 8. Bg5 {[%clk 0:02:51.9]} 8... h6
{[%clk 0:02:55.5]} 9. Be3 {[%clk 0:02:50.1]} 9... Nh5 {[%clk 0:02:54.5]} 10. Nh2
{[%clk 0:02:46.3]} 10... Nf4 {[%clk 0:02:52.1]} 11. Qd2 {[%clk 0:02:43.4]} 11...
f5 {[%clk 0:02:50.4]} 12. g3 {[%clk 0:02:27.5]} 12... fxe4 {[%clk 0:02:20.3]}
13. gxf4 {[%clk 0:02:23.1]} 13... exf4 {[%clk 0:02:19.8]} 14. Bxf4 {[%clk
0:02:21.6]} 14... g5 {[%clk 0:02:14.7]} 15. Be3 {[%clk 0:02:20.1]} 15... Nc5
{[%clk 0:02:10.7]} 16. Ng4 {[%clk 0:01:45.9]} 16... Qe7 {[%clk 0:01:34.7]} 17.
O-O-O {[%clk 0:01:20.1]} 17... Bf5 {[%clk 0:01:34.1]} 18. Bxc5 {[%clk
0:01:17.4]} 18... dxc5 {[%clk 0:01:33.2]} 19. Ne3 {[%clk 0:01:15.2]} 19... Bh7
{[%clk 0:01:31.5]} 20. Bg2 {[%clk 0:01:14.2]} 20... b5 {[%clk 0:01:24.3]} 21.
cxb5 {[%clk 0:01:07.2]} 21... a6 {[%clk 0:01:23]} 22. b6 {[%clk 0:00:54.9]}
22... Rab8 {[%clk 0:01:16.8]} 23. d6 {[%clk 0:00:47.7]} 23... cxd6 {[%clk
0:01:15.6]} 24. Qxd6 {[%clk 0:00:33.6]} 24... Qe8 {[%clk 0:01:15.3]} 25. Qd5+
{[%clk 0:00:30.3]} 25... Kh8 {[%clk 0:01:14.6]} 26. Bxe4 {[%clk 0:00:30.4]}
26... Bg8 {[%clk 0:01:01.4]} 27. Qc6 {[%clk 0:00:27.9]} 27... Qe5 {[%clk
0:01:00.6]} 28. Qc7 {[%clk 0:00:23.1]} 28... Qf6 {[%clk 0:00:52.2]} 29. Ned5
{[%clk 0:00:20.4]} 29... Bxd5 {[%clk 0:00:48.2]} 30. Bxd5 {[%clk 0:00:19.7]}
30... Rxb6 {[%clk 0:00:47.3]} 31. Bb3 {[%clk 0:00:17.4]} 31... c4 {[%clk
0:00:29.8]} 32. Qxc4 {[%clk 0:00:16.9]} 32... Rc6 {[%clk 0:00:30.4]} 33. Qd3
{[%clk 0:00:13.3]} 33... Rfc8 {[%clk 0:00:19.9]} 34. Bc2 {[%clk 0:00:13.7]}
34... Kg8 {[%clk 0:00:15.9]} 35. Qd5+ {[%clk 0:00:13.4]} 35... Kh8 {[%clk
0:00:15.2]} 36. Rd3 {[%clk 0:00:13.5]} 36... Qf4+ {[%clk 0:00:13.4]} 37. Kd1
{[%clk 0:00:12.5]} 37... Rb6 {[%clk 0:00:14.2]} 38. Na4 {[%clk 0:00:11.2]} 38...
Rf6 {[%clk 0:00:13]} 39. Rf1 {[%clk 0:00:10.2]} 39... Rcf8 {[%clk 0:00:11.5]}
40. f3 {[%clk 0:00:09.8]} 40... Qb4 {[%clk 0:00:11.1]} 41. Qb3 {[%clk
0:00:09.2]} 41... Qe7 {[%clk 0:00:10.1]} 42. Re3 {[%clk 0:00:08.8]} 42... Qd6+
{[%clk 0:00:09.2]} 43. Kc1 {[%clk 0:00:09]} 43... Qh2 {[%clk 0:00:10.1]} 44. Qc4
{[%clk 0:00:06.1]} 44... Qg3 {[%clk 0:00:09.5]} 45. Qe4 {[%clk 0:00:06.3]} 45...
Rf5 {[%clk 0:00:10]} 46. Qxf5 {[%clk 0:00:06]} 46... Rxf5 {[%clk 0:00:09.4]} 47.
Bxf5 {[%clk 0:00:06.9]} 47... Qf4 {[%clk 0:00:10]} 48. Re1 {[%clk 0:00:06.6]}
48... g4 {[%clk 0:00:10.9]} 49. Bxg4 {[%clk 0:00:06.3]} 49... Be5 {[%clk
0:00:10.6]} 50. Nc3 {[%clk 0:00:06.7]} 50... Bd4 {[%clk 0:00:10.4]} 51. Kd2
{[%clk 0:00:07.4]} 51... Bxe3+ {[%clk 0:00:11.3]} 52. Rxe3 {[%clk 0:00:08.2]}
52... Qd4+ {[%clk 0:00:11.6]} 53. Rd3 {[%clk 0:00:08]} 53... Qe5 {[%clk
0:00:12.5]} 54. Ne2 {[%clk 0:00:07.9]} 54... Qf4+ {[%clk 0:00:13.4]} 55. Nxf4
{[%clk 0:00:07.9]} 55... Kg7 {[%clk 0:00:13.2]} 56. Rd6 {[%clk 0:00:08.5]} 56...
h5 {[%clk 0:00:10.7]} 57. Nxh5+ {[%clk 0:00:09.4]} 57... Kf8 {[%clk 0:00:10.7]}
58. Rxa6 {[%clk 0:00:10.3]} 58... Ke7 {[%clk 0:00:11.3]} 59. b4 {[%clk
0:00:10.2]} 59... Kd8 {[%clk 0:00:12]} 60. a4 {[%clk 0:00:10.9]} 1-0

[Event "*** Titled Tuesday Blitz"]
[Site "Chess.com"]
[Date "2020.05.19"]
[Round "2"]
[White "SCIM"]
[Black "Mirzaad786"]
[Result "1/2-1/2"]
[WhiteElo "2540"]
[BlackElo "2255"]
[TimeControl "180+1"]
[EndTime "12:19:17 PDT"]
[Termination "Game drawn by repetition"]

1. d4 {[%clk 0:03:00.9]} 1... d5 {[%clk 0:02:59.5]} 2. c4 {[%clk 0:03:00.4]}
2... c6 {[%clk 0:02:59.9]} 3. Nf3 {[%clk 0:03:00.7]} 3... Nf6 {[%clk 0:02:59.3]}
4. e3 {[%clk 0:03:01.3]} 4... Bf5 {[%clk 0:02:59.6]} 5. Nc3 {[%clk 0:03:00.4]}
5... e6 {[%clk 0:02:59.9]} 6. Nh4 {[%clk 0:02:59.1]} 6... Bg6 {[%clk 0:02:59.9]}
7. Qb3 {[%clk 0:02:55.1]} 7... b6 {[%clk 0:02:55.7]} 8. Nxg6 {[%clk 0:02:52.5]}
8... hxg6 {[%clk 0:02:55.7]} 9. cxd5 {[%clk 0:02:52.8]} 9... exd5 {[%clk
0:02:55.9]} 10. g3 {[%clk 0:02:49.8]} 10... Bd6 {[%clk 0:02:54.9]} 11. Bg2
{[%clk 0:02:49.1]} 11... Nbd7 {[%clk 0:02:55.4]} 12. O-O {[%clk 0:02:46.8]}
12... O-O {[%clk 0:02:55.6]} 13. e4 {[%clk 0:02:40.8]} 13... dxe4 {[%clk
0:02:54.9]} 14. Nxe4 {[%clk 0:02:41.7]} 14... Nxe4 {[%clk 0:02:52.2]} 15. Bxe4
{[%clk 0:02:42.6]} 15... Rc8 {[%clk 0:02:51.7]} 16. Bxg6 {[%clk 0:02:37.6]}
16... c5 {[%clk 0:02:50.6]} 17. Bb1 {[%clk 0:02:25.8]} 17... cxd4 {[%clk
0:02:41]} 18. Qd3 {[%clk 0:02:22.5]} 18... g6 {[%clk 0:02:15.5]} 19. Qxd4 {[%clk
0:02:17.1]} 19... Be5 {[%clk 0:02:15.5]} 20. Qd5 {[%clk 0:02:11]} 20... Rxc1
{[%clk 0:02:11.5]} 21. Rxc1 {[%clk 0:02:07.8]} 21... Bxb2 {[%clk 0:02:11.9]} 22.
Bxg6 {[%clk 0:02:05.6]} 22... Bxa1 {[%clk 0:02:10.8]} 23. Rxa1 {[%clk 0:02:05]}
23... Nf6 {[%clk 0:02:08.2]} 24. Qxd8 {[%clk 0:01:57.9]} 24... Rxd8 {[%clk
0:02:09.1]} 25. Bf5 {[%clk 0:01:57.1]} 25... Rd2 {[%clk 0:02:08.1]} 26. a4
{[%clk 0:01:57]} 26... Nd5 {[%clk 0:01:56.9]} 27. h4 {[%clk 0:01:53.5]} 27...
Kg7 {[%clk 0:01:48.5]} 28. Be4 {[%clk 0:01:44.9]} 28... Nc3 {[%clk 0:01:44.6]}
29. Bf3 {[%clk 0:01:45.1]} 29... Ra2 {[%clk 0:01:42.2]} 30. Rxa2 {[%clk
0:01:33.1]} 30... Nxa2 {[%clk 0:01:43.1]} 31. g4 {[%clk 0:01:30.7]} 31... Nc3
{[%clk 0:01:43.2]} 32. Bc6 {[%clk 0:01:31.1]} 32... a6 {[%clk 0:01:42.5]} 33.
Kg2 {[%clk 0:01:24.5]} 33... b5 {[%clk 0:01:42.9]} 34. axb5 {[%clk 0:01:24.4]}
34... axb5 {[%clk 0:01:43.8]} 35. Bd7 {[%clk 0:01:14.1]} 35... b4 {[%clk
0:01:42.3]} 36. Bf5 {[%clk 0:01:12.8]} 36... b3 {[%clk 0:01:42.7]} 37. f4 {[%clk
0:01:08.7]} 37... b2 {[%clk 0:01:42.4]} 38. Kf3 {[%clk 0:01:08.7]} 38... b1=Q
{[%clk 0:01:40.6]} 39. Bxb1 {[%clk 0:01:08.6]} 39... Nxb1 {[%clk 0:01:41.5]} 40.
Ke4 {[%clk 0:01:08.3]} 40... Nd2+ {[%clk 0:01:37.3]} 41. Kf5 {[%clk 0:01:06]}
41... Nf3 {[%clk 0:01:35.3]} 42. h5 {[%clk 0:01:04.9]} 42... f6 {[%clk 0:01:28]}
43. h6+ {[%clk 0:00:59.3]} 43... Kf7 {[%clk 0:01:19]} 44. Ke4 {[%clk 0:00:36.8]}
44... Nh4 {[%clk 0:01:10.8]} 45. f5 {[%clk 0:00:32.1]} 45... Ng6 {[%clk
0:00:31.7]} 46. h7 {[%clk 0:00:18.1]} 46... Nh8 {[%clk 0:00:30.7]} 47. Kd5
{[%clk 0:00:17.9]} 47... Kg7 {[%clk 0:00:29.1]} 48. Ke6 {[%clk 0:00:17.7]} 48...
Nf7 {[%clk 0:00:29.4]} 49. Ke7 {[%clk 0:00:15.2]} 49... Nh8 {[%clk 0:00:22.3]}
50. Ke6 {[%clk 0:00:07.1]} 50... Nf7 {[%clk 0:00:21.3]} 51. Ke7 {[%clk
0:00:04.2]} 51... Nh8 {[%clk 0:00:18.6]} 52. Ke6 {[%clk 0:00:04.4]} 1/2-1/2

[Event "*** Titled Tuesday Blitz"]
[Site "Chess.com"]
[Date "2020.05.19"]
[Round "2"]
[White "praveenb2002"]
[Black "lolo9292"]
[Result "0-1"]
[WhiteElo "2715"]
[BlackElo "2503"]
[TimeControl "180+1"]
[EndTime "12:19:20 PDT"]
[Termination "lolo9292 won by checkmate"]

1. d4 {[%clk 0:03:00.9]} 1... Nf6 {[%clk 0:02:59.6]} 2. c4 {[%clk 0:03:00.5]}
2... g6 {[%clk 0:03:00]} 3. Nc3 {[%clk 0:02:59.9]} 3... d6 {[%clk 0:03:00.4]} 4.
g3 {[%clk 0:02:59.7]} 4... Bg7 {[%clk 0:03:00.8]} 5. Bg2 {[%clk 0:02:57.9]} 5...
O-O {[%clk 0:03:01.7]} 6. Nf3 {[%clk 0:02:58.3]} 6... Bf5 {[%clk 0:03:01.4]} 7.
O-O {[%clk 0:02:58]} 7... Ne4 {[%clk 0:03:01]} 8. Nxe4 {[%clk 0:02:54.6]} 8...
Bxe4 {[%clk 0:03:01.9]} 9. Bh3 {[%clk 0:02:54.9]} 9... Bxf3 {[%clk 0:02:59.1]}
10. exf3 {[%clk 0:02:55]} 10... e6 {[%clk 0:02:57.2]} 11. Be3 {[%clk 0:02:52.3]}
11... c6 {[%clk 0:02:57.6]} 12. Rc1 {[%clk 0:02:48.7]} 12... d5 {[%clk
0:02:57.7]} 13. b3 {[%clk 0:02:33.7]} 13... Nd7 {[%clk 0:02:57.4]} 14. Qc2
{[%clk 0:02:20.1]} 14... Rc8 {[%clk 0:02:56.5]} 15. Rfd1 {[%clk 0:02:19.9]}
15... Nb6 {[%clk 0:02:55.9]} 16. a4 {[%clk 0:02:14.5]} 16... Nd7 {[%clk
0:02:55.1]} 17. Qd2 {[%clk 0:02:06.5]} 17... Re8 {[%clk 0:02:53]} 18. Rc2 {[%clk
0:02:06.2]} 18... Nb6 {[%clk 0:02:52.4]} 19. a5 {[%clk 0:02:04.1]} 19... Nd7
{[%clk 0:02:52]} 20. Rdc1 {[%clk 0:02:04.3]} 20... a6 {[%clk 0:02:48]} 21. f4
{[%clk 0:02:01]} 21... f5 {[%clk 0:02:45.3]} 22. f3 {[%clk 0:01:56.6]} 22... Nf6
{[%clk 0:02:41.7]} 23. Bf2 {[%clk 0:01:54.5]} 23... Re7 {[%clk 0:02:41.9]} 24.
Bf1 {[%clk 0:01:54.5]} 24... Qd7 {[%clk 0:02:41.6]} 25. h4 {[%clk 0:01:54.5]}
25... h5 {[%clk 0:02:40.8]} 26. Qb4 {[%clk 0:01:54.4]} 26... Bf8 {[%clk
0:02:38.9]} 27. Qc3 {[%clk 0:01:49.6]} 27... Ree8 {[%clk 0:02:38.3]} 28. Re2
{[%clk 0:01:49.1]} 28... Bd6 {[%clk 0:02:37.7]} 29. Rce1 {[%clk 0:01:46.8]}
29... Bc7 {[%clk 0:02:37.5]} 30. Be3 {[%clk 0:01:45.5]} 30... Kf7 {[%clk
0:02:36.6]} 31. Bd2 {[%clk 0:01:45.3]} 31... Qd6 {[%clk 0:02:34.9]} 32. Re3
{[%clk 0:01:43.6]} 32... Re7 {[%clk 0:02:32.7]} 33. Qa1 {[%clk 0:01:40.7]} 33...
Rd8 {[%clk 0:02:30.1]} 34. Bc3 {[%clk 0:01:40.8]} 34... Rde8 {[%clk 0:02:28.3]}
35. Qa4 {[%clk 0:01:40.1]} 35... Qd8 {[%clk 0:02:26.5]} 36. Bb4 {[%clk
0:01:38.6]} 36... Bd6 {[%clk 0:02:26.4]} 37. Bc3 {[%clk 0:01:29.2]} 37... c5
{[%clk 0:02:23.6]} 38. Kg2 {[%clk 0:01:23.6]} 38... Rc7 {[%clk 0:02:22.7]} 39.
Bd3 {[%clk 0:01:03.6]} 39... Ree7 {[%clk 0:02:18.3]} 40. R3e2 {[%clk 0:01:02.6]}
40... Qd7 {[%clk 0:02:13.6]} 41. Qa1 {[%clk 0:01:01.7]} 41... Ne8 {[%clk
0:02:04.2]} 42. dxc5 {[%clk 0:00:55.9]} 42... Bxc5 {[%clk 0:02:03.4]} 43. cxd5
{[%clk 0:00:53.5]} 43... exd5 {[%clk 0:02:02.8]} 44. Be5 {[%clk 0:00:49.2]}
44... Rc6 {[%clk 0:01:53.6]} 45. Rd1 {[%clk 0:00:46.7]} 45... Nc7 {[%clk
0:01:48.2]} 46. Bxc7 {[%clk 0:00:40.2]} 46... Rxc7 {[%clk 0:01:45.2]} 47. Qh8
{[%clk 0:00:39.3]} 47... Rc8 {[%clk 0:01:38.5]} 48. Qh7+ {[%clk 0:00:36.3]}
48... Kf6 {[%clk 0:01:36.6]} 49. Qh6 {[%clk 0:00:36.6]} 49... Rxe2+ {[%clk
0:01:34.9]} 50. Bxe2 {[%clk 0:00:36.4]} 50... Qe6 {[%clk 0:01:31.1]} 51. Bd3
{[%clk 0:00:25.8]} 51... Qe3 {[%clk 0:01:26.2]} 52. Qg5+ {[%clk 0:00:22.1]}
52... Kf7 {[%clk 0:01:26]} 53. Bxf5 {[%clk 0:00:17.7]} 53... Qe2+ {[%clk
0:01:23.3]} 54. Kh3 {[%clk 0:00:18]} 54... gxf5 {[%clk 0:01:20.7]} 55. Qxf5+
{[%clk 0:00:18.1]} 55... Kg7 {[%clk 0:01:17.1]} 56. Qg5+ {[%clk 0:00:18.1]}
56... Kf8 {[%clk 0:01:15]} 57. Qf5+ {[%clk 0:00:18]} 57... Ke7 {[%clk
0:01:14.1]} 58. Qg5+ {[%clk 0:00:15.5]} 58... Kf7 {[%clk 0:01:09.1]} 59. Qxh5+
{[%clk 0:00:15.6]} 59... Ke7 {[%clk 0:01:04.3]} 60. Qg5+ {[%clk 0:00:15.5]}
60... Kf7 {[%clk 0:00:58.9]} 61. Rxd5 {[%clk 0:00:14.7]} 61... Qe6+ {[%clk
0:00:56.4]} 62. g4 {[%clk 0:00:13.6]} 62... Be7 {[%clk 0:00:54.3]} 63. Rf5+
{[%clk 0:00:13.6]} 63... Bf6 {[%clk 0:00:52.5]} 64. Qh5+ {[%clk 0:00:13.1]}
64... Kg7 {[%clk 0:00:50.5]} 65. Kg3 {[%clk 0:00:11.3]} 65... Rc1 {[%clk
0:00:49.3]} 66. Rd5 {[%clk 0:00:06.1]} 66... Qe1+ {[%clk 0:00:48.9]} 67. Kg2
{[%clk 0:00:05.7]} 67... Qg1+ {[%clk 0:00:48.6]} 68. Kh3 {[%clk 0:00:06.2]}
68... Qh1+ {[%clk 0:00:43.7]} 69. Kg3 {[%clk 0:00:06.7]} 69... Rg1+ {[%clk
0:00:41.1]} 70. Kf2 {[%clk 0:00:07.2]} 70... Qg2+ {[%clk 0:00:41.7]} 71. Ke3
{[%clk 0:00:07.7]} 71... Re1+ {[%clk 0:00:42.3]} 72. Kd3 {[%clk 0:00:08.2]}
72... Qe2# {[%clk 0:00:42]} 0-1

[Event "*** Titled Tuesday Blitz"]
[Site "Chess.com"]
[Date "2020.05.19"]
[Round "2"]
[White "vova-79"]
[Black "Jenia84"]
[Result "0-1"]
[WhiteElo "2433"]
[BlackElo "2239"]
[TimeControl "180+1"]
[EndTime "12:19:20 PDT"]
[Termination "Jenia84 won on time"]

1. d4 {[%clk 0:03:00.9]} 1... Nf6 {[%clk 0:02:52.8]} 2. Nf3 {[%clk 0:02:57]}
2... b6 {[%clk 0:02:51.3]} 3. Bf4 {[%clk 0:02:55.3]} 3... Bb7 {[%clk 0:02:49.8]}
4. e3 {[%clk 0:02:53]} 4... e6 {[%clk 0:02:49.6]} 5. Be2 {[%clk 0:02:48.3]} 5...
d5 {[%clk 0:02:47.3]} 6. Nbd2 {[%clk 0:02:44.6]} 6... Bd6 {[%clk 0:02:45.9]} 7.
Ne5 {[%clk 0:02:42.9]} 7... Nbd7 {[%clk 0:02:43]} 8. Ndf3 {[%clk 0:02:41.7]}
8... O-O {[%clk 0:02:41.5]} 9. O-O {[%clk 0:02:40.7]} 9... Ne4 {[%clk
0:02:38.6]} 10. c4 {[%clk 0:02:37.3]} 10... f6 {[%clk 0:02:31.5]} 11. cxd5
{[%clk 0:02:04.6]} 11... exd5 {[%clk 0:02:29.7]} 12. Nd3 {[%clk 0:01:55.4]}
12... Qe7 {[%clk 0:02:18.8]} 13. Rc1 {[%clk 0:01:52.3]} 13... Rac8 {[%clk
0:02:17.6]} 14. Qa4 {[%clk 0:01:50.4]} 14... a5 {[%clk 0:02:12.5]} 15. Bxd6
{[%clk 0:01:34.6]} 15... Qxd6 {[%clk 0:02:10.5]} 16. Rc2 {[%clk 0:01:34.1]}
16... Ba6 {[%clk 0:01:40.4]} 17. Rfc1 {[%clk 0:01:29.6]} 17... Bxd3 {[%clk
0:01:29.5]} 18. Bxd3 {[%clk 0:01:26.9]} 18... c5 {[%clk 0:01:30]} 19. Bb5 {[%clk
0:00:35.6]} 19... Rfd8 {[%clk 0:01:01.6]} 20. Bxd7 {[%clk 0:00:34.7]} 20... Qxd7
{[%clk 0:00:52.3]} 21. Qxd7 {[%clk 0:00:32.1]} 21... Rxd7 {[%clk 0:00:52.4]} 22.
dxc5 {[%clk 0:00:31.4]} 22... bxc5 {[%clk 0:00:51.4]} 23. Nd2 {[%clk 0:00:30.5]}
23... Nxd2 {[%clk 0:00:49.2]} 24. Rxd2 {[%clk 0:00:31.4]} 24... Kf7 {[%clk
0:00:48.9]} 25. Kf1 {[%clk 0:00:27.3]} 25... Ke6 {[%clk 0:00:48.6]} 26. Ke2
{[%clk 0:00:27.8]} 26... Rb7 {[%clk 0:00:45.3]} 27. Rcd1 {[%clk 0:00:24.2]}
27... Rd7 {[%clk 0:00:37.7]} 28. e4 {[%clk 0:00:22.6]} 28... d4 {[%clk
0:00:36.9]} 29. b3 {[%clk 0:00:22.3]} 29... Ra7 {[%clk 0:00:33.2]} 30. Rc1
{[%clk 0:00:21]} 30... Rcc7 {[%clk 0:00:20.5]} 31. Rc4 {[%clk 0:00:17.4]} 31...
Kd6 {[%clk 0:00:18.3]} 32. f4 {[%clk 0:00:16.1]} 32... a4 {[%clk 0:00:17.6]} 33.
bxa4 {[%clk 0:00:15.1]} 33... Re7 {[%clk 0:00:17.1]} 34. Kf3 {[%clk 0:00:13.9]}
34... Ra5 {[%clk 0:00:16.7]} 35. Rb2 {[%clk 0:00:13.4]} 35... Ra6 {[%clk
0:00:14.5]} 36. Rb5 {[%clk 0:00:13]} 36... Rc7 {[%clk 0:00:14.4]} 37. Rb8 {[%clk
0:00:12.8]} 37... Rca7 {[%clk 0:00:13.8]} 38. Rd8+ {[%clk 0:00:10.9]} 38... Ke7
{[%clk 0:00:12.5]} 39. Rc8 {[%clk 0:00:09.3]} 39... Rxa4 {[%clk 0:00:12.4]} 40.
R8xc5 {[%clk 0:00:09]} 40... Rxc4 {[%clk 0:00:11]} 41. Rxc4 {[%clk 0:00:08.6]}
41... Rxa2 {[%clk 0:00:11.7]} 42. Rxd4 {[%clk 0:00:08.5]} 42... Ra3+ {[%clk
0:00:10.9]} 43. Kg4 {[%clk 0:00:08.4]} 43... Ra2 {[%clk 0:00:09.9]} 44. Kf3
{[%clk 0:00:05.5]} 44... Ke6 {[%clk 0:00:10.1]} 45. h3 {[%clk 0:00:04.8]} 45...
g5 {[%clk 0:00:09.3]} 46. fxg5 {[%clk 0:00:04.2]} 46... fxg5 {[%clk 0:00:08.7]}
47. Rd5 {[%clk 0:00:04.4]} 47... h6 {[%clk 0:00:07.3]} 48. Rb5 {[%clk
0:00:04.4]} 48... Kf6 {[%clk 0:00:06.8]} 49. g3 {[%clk 0:00:04.3]} 49... Ra3+
{[%clk 0:00:03.9]} 50. Kg4 {[%clk 0:00:04]} 50... Re3 {[%clk 0:00:04.3]} 51.
Rb6+ {[%clk 0:00:03.7]} 51... Kg7 {[%clk 0:00:04.8]} 52. h4 {[%clk 0:00:02.2]}
52... gxh4 {[%clk 0:00:04.2]} 0-1

[Event "*** Titled Tuesday Blitz"]
[Site "Chess.com"]
[Date "2020.05.19"]
[Round "2"]
[White "Infernal_XaM"]
[Black "Machidon"]
[Result "0-1"]
[WhiteElo "2836"]
[BlackElo "2560"]
[TimeControl "180+1"]
[EndTime "12:19:22 PDT"]
[Termination "Machidon won by resignation"]

1. Nf3 {[%clk 0:03:00.9]} 1... c6 {[%clk 0:03:00.1]} 2. e4 {[%clk 0:02:55.8]}
2... d5 {[%clk 0:03:01]} 3. d3 {[%clk 0:02:55.8]} 3... dxe4 {[%clk 0:03:01]} 4.
dxe4 {[%clk 0:02:55.8]} 4... Qxd1+ {[%clk 0:03:01.9]} 5. Kxd1 {[%clk 0:02:56.3]}
5... Bg4 {[%clk 0:03:02.8]} 6. Nd2 {[%clk 0:02:55.3]} 6... e6 {[%clk 0:03:02.2]}
7. h3 {[%clk 0:02:53.3]} 7... Bxf3+ {[%clk 0:03:01.2]} 8. Nxf3 {[%clk
0:02:53.4]} 8... Nd7 {[%clk 0:03:02.1]} 9. Bd3 {[%clk 0:02:42.3]} 9... Ngf6
{[%clk 0:02:50]} 10. e5 {[%clk 0:02:34.2]} 10... Nd5 {[%clk 0:02:49.6]} 11. c4
{[%clk 0:02:33.4]} 11... Nb4 {[%clk 0:02:45.1]} 12. Bb1 {[%clk 0:02:33.4]} 12...
O-O-O {[%clk 0:02:43.3]} 13. Ke2 {[%clk 0:02:32.3]} 13... h6 {[%clk 0:02:12.2]}
14. a3 {[%clk 0:02:31.5]} 14... Na6 {[%clk 0:02:12.3]} 15. b4 {[%clk 0:02:29.4]}
15... Be7 {[%clk 0:02:11.2]} 16. Be3 {[%clk 0:02:28.9]} 16... Kc7 {[%clk
0:02:04.9]} 17. Bd3 {[%clk 0:02:23.6]} 17... c5 {[%clk 0:02:04.2]} 18. b5 {[%clk
0:02:22.7]} 18... Nab8 {[%clk 0:02:04.2]} 19. Rhd1 {[%clk 0:02:22.5]} 19... a5
{[%clk 0:01:48]} 20. a4 {[%clk 0:02:16.8]} 20... b6 {[%clk 0:01:24.8]} 21. Rd2
{[%clk 0:02:05]} 21... Nf8 {[%clk 0:01:24.6]} 22. h4 {[%clk 0:01:58.6]} 22...
Ng6 {[%clk 0:01:20]} 23. h5 {[%clk 0:01:56.5]} 23... Nh4 {[%clk 0:01:20.1]} 24.
Ne1 {[%clk 0:01:34]} 24... g6 {[%clk 0:01:16]} 25. hxg6 {[%clk 0:01:29.2]} 25...
fxg6 {[%clk 0:01:16.6]} 26. Rad1 {[%clk 0:01:20.3]} 26... Nf5 {[%clk 0:01:14.5]}
27. Bxf5 {[%clk 0:01:19.9]} 27... gxf5 {[%clk 0:01:15.4]} 28. Rxd8 {[%clk
0:01:10.1]} 28... Bxd8 {[%clk 0:01:16.3]} 29. Rd6 {[%clk 0:01:09.7]} 29... Re8
{[%clk 0:01:00.9]} 30. Bxh6 {[%clk 0:01:09.3]} 30... Nd7 {[%clk 0:00:56.8]} 31.
Bf4 {[%clk 0:01:07.3]} 31... Nf8 {[%clk 0:00:56.8]} 32. Nd3 {[%clk 0:00:52.8]}
32... Ng6 {[%clk 0:00:56.6]} 33. g3 {[%clk 0:00:50.8]} 33... Nf8 {[%clk
0:00:47.7]} 34. Bd2 {[%clk 0:00:45.9]} 34... Be7 {[%clk 0:00:42.9]} 35. Rc6+
{[%clk 0:00:45.7]} 35... Kb7 {[%clk 0:00:43.5]} 36. Nf4 {[%clk 0:00:46.3]} 36...
Bg5 {[%clk 0:00:36.9]} 37. Nh5 {[%clk 0:00:43.2]} 37... Bxd2 {[%clk 0:00:32.7]}
38. Kxd2 {[%clk 0:00:43.3]} 38... Rd8+ {[%clk 0:00:33.3]} 39. Rd6 {[%clk
0:00:39.8]} 39... Rxd6+ {[%clk 0:00:24.3]} 40. exd6 {[%clk 0:00:40.7]} 40... Kc8
{[%clk 0:00:24.7]} 41. Nf6 {[%clk 0:00:38.5]} 41... Nd7 {[%clk 0:00:25.2]} 42.
Nxd7 {[%clk 0:00:28.7]} 42... Kxd7 {[%clk 0:00:26.1]} 43. Ke3 {[%clk 0:00:29.4]}
43... e5 {[%clk 0:00:20.6]} 44. f3 {[%clk 0:00:29.1]} 44... Kxd6 {[%clk
0:00:20.3]} 45. g4 {[%clk 0:00:29.3]} 45... Ke6 {[%clk 0:00:20.6]} 46. Kf2
{[%clk 0:00:18.8]} 46... Kf6 {[%clk 0:00:20.1]} 47. gxf5 {[%clk 0:00:16.8]}
47... Kxf5 {[%clk 0:00:19.9]} 48. Ke3 {[%clk 0:00:17.7]} 48... Kf6 {[%clk
0:00:18.2]} 49. f4 {[%clk 0:00:16.8]} 49... Kf5 {[%clk 0:00:16.5]} 50. Kd3
{[%clk 0:00:06.3]} 50... Kxf4 {[%clk 0:00:15.6]} 0-1